Cogmind - Beta 13 @@@ ROGUE MODE // 2024.04.29 @ 21:44:12 Player: Some Pennies Result: Destroyed by ND-37L(R) with Subdweller Machine Gun Performance ------------- Evolutions (0) 0 Regions Visited (2) 400 Robots Destroyed (35) 175 Value Destroyed (665) 665 Prototype IDs (12) 240 Alien Tech Used (0) 0 Bonus (0) 0 TOTAL SCORE: 1480 Bonus ------- None Cogmind --------- Core Integrity 0/250 Matter 300/300 Energy 121/125 System Corruption 0% Temperature Cool (3) Movement Walking (200) Ox1 Location -10/Subcaves Parts ------- > --- POWER (1) -------- Light Ion Engine > --- PROPULSION (2) --- Cargo Legs > --- UTILITY (2+2) ---- Huge Storage Unit Structural Scanner Hacking Suite (+) Hacking Suite (+) > --- WEAPON (2) ------- Improved Light Cannon Improved Light Cannon > --- INVENTORY (25) --- Light Ion Engine Improved Heat Sink Medium Matter Pod (100) Sensor Array Signal Interpreter Improved Terrain Scanner Seismic Detector Seismic Detector Hacking Suite Makeshift System Restoration Module Field Recycling Unit (0) Riot Gun Particle Gun Particle Gun Particle Gun Beam Cannon Light Assault Rifle Improved Light Cannon Improved Light Cannon Grenade Launcher Datajack Mining Laser Multitool Peak State ------------ > --- POWER ------------ Light Ion Engine > --- PROPULSION ------- Cargo Legs > --- UTILITY ---------- Huge Storage Unit Structural Scanner Hacking Suite Hacking Suite > --- WEAPON ----------- Improved Light Cannon Improved Light Cannon > --- INVENTORY -------- Light Ion Engine Improved Heat Sink Medium Matter Pod Sensor Array Signal Interpreter Improved Terrain Scanner Seismic Detector Seismic Detector Hacking Suite Makeshift System Restoration Module Field Recycling Unit Riot Gun Particle Gun Particle Gun Particle Gun Beam Cannon Light Assault Rifle Improved Light Cannon Improved Light Cannon Grenade Launcher Datajack Mining Laser Multitool [Rating: 33] Favorites ----------- Power Light Ion Engine Engine Light Ion Engine Propulsion Light Treads Treads Light Treads Leg Cargo Legs Utility Huge Storage Unit Device Seismic Detector Storage Huge Storage Unit Hackware Hacking Suite Protection Light Armor Plating Weapon Improved Light Cannon Energy Gun Medium Laser Energy Cannon Beam Cannon Ballistic Gun Assault Rifle Ballistic Cannon Improved Light Cannon Special Weapon Mining Laser Build | -11 -10 -10 ------- Run | Yrd Mat Sub Slots Evolved . | . . . Power . | . . . Propulsion . | . . . Utility . | . . . Weapon . | . . . Parts Attached 35 | 8 13 14 Power 2 | 1 1 . Engine 2 | 1 1 . Core . | . . . Reactor . | . . . Propulsion 5 | 2 2 1 Treads 4 | 2 2 . Leg 1 | . . 1 Wheel . | . . . Hover . | . . . Flight . | . . . Utility 16 | 3 8 5 Device 8 | 2 4 2 Storage 3 | 1 2 . Processor . | . . . Hackware 2 | . . 2 Protection 3 | . 2 1 Artifact . | . . . Weapon 12 | 2 2 8 Energy Gun 1 | 1 . . Energy Cannon 1 | . 1 . Ballistic Gun 2 | 1 1 . Ballistic Cannon 5 | . . 5 Launcher . | . . . Special Weapon 3 | . . 3 Impact Weapon . | . . . Slashing Weapon . | . . . Piercing Weapon . | . . . Special Melee Weapon . | . . . Unidentified Prototypes . | . . . Parts Lost 3 | . 1 2 Power . | . . . Propulsion 2 | . 1 1 Utility 1 | . . 1 Weapon . | . . . Highest Loss Streak 1 | . 1 1 To Critical Strikes . | . . . Average Slot Usage (%) 97 | . 99 95 Engine 13 | . 14 13 Treads 24 | . 27 20 Leg 1 | . . 2 Device 11 | . 12 9 Storage 13 | . 14 13 Hackware 2 | . . 4 Protection 2 | . 1 4 Energy Cannon 7 | . 12 . Ballistic Gun 8 | . 14 . Ballistic Cannon 10 | . . 23 Naked Turns . | . . . Heaviest Build 96 | 13 90 96 Greatest Support 55 | 40 40 55 Greatest Overweight (x) 4 | 1 2 4 Average Overweight (x) 1 | . 1 1 Largest Inventory Capacity 25 | 8 25 25 Average Capacity 22 | 7 21 25 Most Carried 25 | 5 25 25 Average Carried 19 | 2 18 23 Final Capacity 25 | 8 25 25 Final Carried 25 | 4 25 23 Class Distribution -------------------- 89% | Mutant 7% | Hacker-Mutant Dominant Class ---------------- Mutant | -10/Materials Mutant | -10/Subcaves Resources | -11 -10 -10 ----------- Run | Yrd Mat Sub Matter Collected 1127 | 402 463 262 Remotely . | . . . Salvage Created 931 | 174 683 74 Parts 81 | 25 52 4 Haulers Intercepted 2 | . 2 . Recyclers Shooed 2 | 1 1 . Parts Field Recycled . | . . . Retrieved Matter . | . . . Parts Self-Destructed 22 | . . 22 Prevented . | . . . Kills | -11 -10 -10 ------- Run | Yrd Mat Sub Combat Hostiles Destroyed 15 | . 11 4 Guns 6 | . 6 . Cannons 9 | . 5 4 Classes Destroyed 11 | 2 7 2 Worker 1 | 1 . . Builder 3 | . 3 . Tunneler 8 | 8 . . Hauler 2 | . 2 . Recycler 1 | . 1 . Operator 3 | . 3 . Watcher 2 | . 2 . Swarmer 3 | . 3 . Grunt 8 | . 8 . Sentry 1 | . . 1 Subdweller 3 | . . 3 Best Kill Streak 3 | 3 3 2 Combat Bots Only 3 | . 3 2 Max Kills in Single Turn 1 | 1 1 1 Gunslinging . | . . . Exploded . | . . . Melee . | . . . Uniques/NPCs Destroyed . | . . . Combat | -11 -10 -10 -------- Run | Yrd Mat Sub Hostile Shots Fired 107 | . 75 32 Missed 28 | . 16 12 Damage Taken 1092 | . 653 439 Core 254 | . 101 153 Absorbed by Shields . | . . . Regen/Repaired (Parts) 89 | . 89 . Core Remaining (%) 100 | 100 . . Volleys Fired 118 | 24 70 24 Largest 2 | 2 2 2 Hottest 100 | 70 80 100 Shots Fired 230 | 48 140 42 Gun 141 | 48 93 . Cannon 81 | . 47 34 Launcher . | . . . Special 8 | . . 8 Kinetic 126 | 24 69 33 Thermal 104 | 24 71 9 Explosive . | . . . Electromagnetic . | . . . Robot Hit Streak 9 | 5 9 7 Robot Miss Streak 6 | 3 6 2 Penetration Max . | . . . Secondary Targets 2 | . 2 . Max Gunslinging Chain 1 | . 1 . Shots Hit Robots 131 | 28 84 19 Core Hits 50 | 9 35 6 Critical Kills . | . . . Critical Parts Destroyed . | . . . Critical Strikes 5 | 2 1 2 Burn 3 | 2 1 . Blast 2 | . . 2 Melee Attacks . | . . . Impact . | . . . Slashing . | . . . Piercing . | . . . Sneak Attacks . | . . . Combat Hostiles . | . . . Follow-up Attacks . | . . . Damage Inflicted 2001 | 365 1207 429 Guns 1002 | 365 637 . Cannons 999 | . 570 429 Explosions . | . . . Melee . | . . . Ramming . | . . . Kinetic 1068 | 178 461 429 Thermal 933 | 187 746 . Explosive . | . . . Electromagnetic . | . . . Impact . | . . . Slashing . | . . . Piercing . | . . . Highest Corruption 2 | . 2 2 Average Corruption 1 | . 2 1 Corruption Purged 2 | . . 2 Corruption Blocked . | . . . Effects 55 | . 44 11 Message Errors 15 | . 13 2 Matter Fused 9 | . 9 . Heat Flow Errors 6 | . 5 1 Energy Discharges 10 | . 8 2 Data Loss (minor) 4 | . 3 1 Data Loss (major) 5 | . 2 3 Misfires 4 | . 2 2 Alerts 1 | . 1 . Weapon Failures 1 | . 1 . Overload Shots . | . . . Overflow Damage . | . . . Projectiles . | . . . Explosions . | . . . Melee . | . . . Knockbacks 2 | . . 2 Impact . | . . . Kinetic 2 | . . 2 Secondary . | . . . Self-Inflicted Damage . | . . . Shots . | . . . Rammed . | . . . Targets Rammed . | . . . Kicked . | . . . Crushed . | . . . Highest Temperature 393 | 36 393 152 Average Temperature 90 | 14 108 80 Received Heat Transfer 375 | . 315 60 Effects 6 | . 6 . Shutdowns 1 | . 1 . Energy Bleed 1 | . 1 . Interference 3 | . 3 . Damage (minor) 1 | . 1 . Siege Activations . | . . . Robots Corrupted . | . . . Combat Hostiles . | . . . Parts Fried . | . . . Impact Corruptions . | . . . Robots Melted . | . . . Combat Hostiles . | . . . Parts Melted 1 | 1 . . Heat Transferred 2479 | 703 1776 . Parts Sabotaged . | . . . Parts Stolen . | . . . Parts Stripped . | . . . Power Chain Reactions . | . . . Alert | -11 -10 -10 ------- Run | Yrd Mat Sub Peak Influence 204 | 45 204 . Initial 29 | . 29 . Average 26 | 25 26 . Maximum Alert Level 1 | . 1 . Low Security (%) 99 | 100 99 . Level 1 . | . . . Level 2 . | . . . Level 3 . | . . . Level 4 . | . . . Level 5 . | . . . High Security . | . . . Max Security . | . . . Squads Dispatched 3 | . 3 . Investigation . | . . . Extermination . | . . . Reinforcement 3 | . 3 . Assault . | . . . Garrison . | . . . Intercept . | . . . Searches Triggered . | . . . Construction Impeded . | . . . Haulers Reinforced . | . . . Active Scanning Responses . | . . . Cargo Convoy Interrupts . | . . . Stealth | -11 -10 -10 --------- Run | Yrd Mat Sub Distress Signals 2 | . 2 . Communications Jammed . | . . . Distress Signals . | . . . Times Spotted 38 | . 33 5 Peak Tracking Total 4 | . 4 2 Tactical Retreats . | . . . Traps | -11 -10 -10 ------- Run | Yrd Mat Sub Traps Triggered 2 | . 1 1 Indirectly . | . . . Trap Hack Attempts . | . . . Triggered . | . . . Disarmed . | . . . Reprogrammed . | . . . Reused . | . . . Traps Extracted . | . . . Installed . | . . . Triggered 1 | . . 1 Machines | -11 -10 -10 ---------- Run | Yrd Mat Sub Machines Disabled 3 | . 2 1 Max in Single Turn 1 | . 1 1 Machines Repaired . | . . . Machines Dismantled . | . . . Machines Sabotaged . | . . . Overloaded Fab Kills . | . . . Hacking | -11 -10 -10 --------- Run | Yrd Mat Sub Machines Accessed 7 | . 6 1 Terminals 5 | . 5 . Fabricators . | . . . Repair Stations 1 | . 1 . Recycling Units . | . . . Scanalyzers . | . . . Garrison Access . | . . . Total Hacks 18 | . 17 1 Successful 13 | . 12 1 Failed 4 | . 4 . Catastrophic . | . . . Database Lockouts 1 | . 1 . Manual 4 | . 4 . Terminals 14 | . 14 . Fabricators . | . . . Repair Stations 3 | . 3 . Recycling Units . | . . . Scanalyzers . | . . . Garrison Access . | . . . Terminal Hacks 11 | . 10 1 Robot Analysis 1 | . 1 . Prototype ID Bank 1 | . 1 . Unreport Threat 1 | . 1 . Locate Traps 3 | . 3 . Hauler Manifests 1 | . 1 . Zone Layout 3 | . 3 . Derelict Proto ID Bank 1 | . . 1 Fabricator Hacks . | . . . Repair Station Hacks 2 | . 2 . Scan Component 1 | . 1 . Repair 1 | . 1 . Recycling Unit Hacks . | . . . Scanalyzer . | . . . Garrison Access Hacks . | . . . Unauthorized Hacks . | . . . Terminals . | . . . Fabricators . | . . . Repair Stations . | . . . Recycling Units . | . . . Scanalyzers . | . . . Garrison Access . | . . . Data Cores Recovered . | . . . Used . | . . . Hacking Detections 6 | . 6 . Full Trace Events 1 | . 1 . Feedback Events . | . . . Feedback Blocked . | . . . Robot Schematics Acquired . | . . . Robots Built . | . . . Authchips . | . . . Time . | . . . Total Robot Build Rating . | . . . Part Schematics Acquired . | . . . Parts Built . | . . . Authchips . | . . . Time . | . . . Total Part Build Rating . | . . . Parts Repaired 1 | . 1 . Time 26 | . 26 . Parts Recycled . | . . . Recycled Matter . | . . . Retrieved Matter . | . . . Retrieved Components . | . . . Parts Scanalyzed . | . . . Part Schematics Acquired . | . . . Parts Damaged . | . . . Bothacking | -11 -10 -10 ------------ Run | Yrd Mat Sub Used RIF Installer . | . . . Robots Hacked . | . . . Non-combat . | . . . Combat . | . . . Robot Hacks Applied . | . . . Relay Couplers Released . | . . . Fabnet Peak Effective % . | . . . Robots Rewired . | . . . Allies Hacked . | . . . Hacks Repelled . | . . . Allies | -11 -10 -10 -------- Run | Yrd Mat Sub Total Allies . | . . . Largest Group . | . . . Highest-Rated Group . | . . . Highest-Rated Ally . | . . . Total Orders . | . . . Ally Attacks . | . . . Total Damage . | . . . Kills . | . . . Allies Corrupted . | . . . Allies Melted . | . . . Intel | -11 -10 -10 ------- Run | Yrd Mat Sub Robot Analysis Total 1 | . 1 . Derelict Logs Recovered 3 | . . 3 Drone Launches . | . . . Drone Recoveries . | . . . Exploration | -11 -10 -10 ------------- Run | Yrd Mat Sub Turns Passed 6720 | 366 3619 2735 Spaces Moved 2368 | 185 1294 889 Core 24 | 24 . . Treads 2053 | 161 1294 598 Legs 291 | . . 291 Wheels . | . . . Hover . | . . . Flight . | . . . Fastest Speed 50 | 50 160 200 Average Speed 261 | 146 256 291 Slowest Speed 480 | 160 320 480 Overloaded Moves . | . . . Propulsion Burnouts . | . . . Robots Hopped . | . . . Cave-ins Triggered . | . . . Exploration Rate (%) 49 | 6 100 43 Regions Visited 2 Branch Regions 1 Pre-discovered Areas 3 | . . 3 Known Exits Taken . | . . . Unknown Exits Taken 2 | 1 1 . Scrap Searched 8 | . . 8 Spaces Dug . | . . . Terrain Destroyed . | . . . Melee . | . . . Projectile . | . . . AOE . | . . . Terrain Rammed . | . . . Walls Destroyed . | . . . Machines Disabled . | . . . Actions | -11 -10 -10 --------- Run | Yrd Mat Sub Total 2660 | 232 1458 970 Wait 80 | 3 45 32 Move 2366 | 184 1293 889 Hop . | . . . Pick Up 45 | 11 28 6 Fast Attach 2 | 2 . . Attach 11 | 5 2 4 Detach . | . . . Swap 22 | 1 11 10 Drop 16 | 2 9 5 Fire 118 | 24 70 24 Melee . | . . . Ram . | . . . Kick . | . . . Crush . | . . . Escape Stasis . | . . . Rewire . | . . . Trap . | . . . Miscellaneous . | . . . Route ------- -11/Scrapyard -10/Materials (discovered 6 exits: [*Mat x3] / [*Min x2] / *Sub) -10/Subcaves History --------- Turn | Location | Event 8 | -11/Scrapyard | Discovered new exit (range 16) 367 | -11/Scrapyard | Entered Materials 368 | -10/Materials | Build established: Mutant 516 | -10/Materials | Discovered new exit (range 18) 546 | -10/Materials | Central database locked down 554 | -10/Materials | Discovered new exit (range 15) 797 | -10/Materials | Discovered new exit (range 10) 916 | -10/Materials | Repaired Lgt. Treads 2157 | -10/Materials | Discovered new exit (range 5) 2234 | -10/Materials | Discovered new exit (range 16) 3791 | -10/Materials | Discovered new exit (range 8) 3986 | -10/Materials | Entered Subcaves 4103 | -10/Subcaves | Learned location of Zion (-6) 4103 | -10/Subcaves | Met a Zionite searching for "candidates" 4121 | -10/Subcaves | Shifting Twisted Machinery released Riot Gun 4149 | -10/Subcaves | Shifting Twisted Machinery released Battle Cannon 5566 | -10/Subcaves | Core integrity fell below 50% 5589 | -10/Subcaves | Core integrity fell below 20% 6065 | -10/Subcaves | Visited 4L-MR0's lab 6093 | -10/Subcaves | Learned Materials interactive machine intel 6126 | -10/Subcaves | Found Cargo Legs 6128 | -10/Subcaves | Attached Cargo Legs, gained temporary slots: Utility x2 6441 | -10/Subcaves | Build established: Hacker-Mutant 6721 | -10/Subcaves | Destroyed by ND-37L(R) with Subdweller Machine Gun Last Messages --------------- 06126_ Dropped Particle Gun. 06126_ Acquired Cargo Legs. 06128_ Core temporarily expanded with Utility slot. 06134_ Acquired Particle Gun. 06491_ Acquired 14 matter. 06563_ Acquired 9 matter. 06575_ Acquired 8 matter. 06614_ Acquired 9 matter. 06628_ Acquired 5 matter. 06636_ Acquired 7 matter. 06646_ Subatomizers dissect the Wheel. 06660_ Acquired 6 matter. 06664_ Acquired 13 matter. 06670_ Acquired 4 matter. 06672_ Subatomizers dissect the Wheel. 06674_ Acquired Multitool. 06683_ Subatomizers dissect the Wheel. 06711_ ND-37L(R): "MADSUB!" 06716_ Subatomizers dissect the Cobbler Unit. Map ----- +----------------------------------------------------+ | ?????????????????????????????????????????????????? | | ?????????????????????????????????????????????????? | | ?????????????????????????????????????????????????? | | ?????????????????????????????????????????????????? | | ?????????????????????????????????????????????????? | | ?????????????????????????????????????????????????? | | ?????????????????????????????????????????????????? | | ?????????????????????????????????????????????????? | | ?????????????## ?????????????????????????????????? | | ???????????#### ????????????????????????????????? | | ???????????### ???????????????????????????????? | | ??????????? ######?????????????????????????? | | ??????????? ######???????####??????????????? | | ??????????? %% # #????#######??????????????? | | ???????????? ?????#### # ??????????????? | | ????????????? =%! ?????# ??????????????? | | ???????????????!% #????? # ???????????????? | | ???????????????##R #####?? ##???????????????? | | ???????????????### ###### ####?????????????? | | ????????????????### #### ###### #????????? | | ?????????????????## # ## # # ##????????? | | ????????????????? ## ##????????? | | ??????????????????### % ##????????? | | ??????????????????### #######?###????????? | | ??????????????????## #######????????????? | | ??????????????????## @ ########???????????? | | ??????????????????### ### ######????????? | | ??????????????????##### #####????????? | | ???????????????????##### ## ##????????? | | ?????????????????????########% ##????????? | | ??????????????????????########% ####????????? | | ???????????????????????????### ####????????? | | ???????????????????????????### ####????????? | | ?????????????????????????? ### ###????????? | | ??????????????????????????### ###???????? | | ??????????????????????????## ### ##???????? | | ??????????????????????????## ### ##???????? | | ?????????????????????????### % ###? ###???????? | | ????????????????????????#### = ##? ####???????? | | ??????????????????????? ### ###?####????????? | | ??????????????????????? ## #####???????????? | | ?###########??????????? # ####???????????? | | #############?????????? #### ##???????????? | | ## % ###?????????? ### ###???????????? | | ##?????????????### ###???????????? | | #### # ##?????????????##% ##???????????? | | ####### ##??#####??????#### ######???????????? | | # ##??######?????### ######???????????? | | ###### ############ ###???????????????? | | "" ###### ########## ##???????????????? | +----------------------------------------------------+ Best States ------------- Heat Dissipation 39 Energy Generation 10 Energy Capacity 125 Matter Stores 300 Matter Capacity 300 Sight Range 16 Terrain Scan Density 10 Armor Coverage 150 Evasion (%) 50 Recoil Reduction 2 Offensive Hacking 20 Item Schematics ----------------- None Robot Schematics ------------------ None Fabricated ------------ Nothing Alien Tech Used ----------------- None Achievements -------------- None Challenges ------------ None Game ------ Seed EnergyAutogunBeamcaster Manual? 0 Play Time 00:24:57 Cumulative 30.0 hours Start 2024.04.29 @ 21:16:51 End 2024.04.29 @ 21:44:12 Sessions 1 Manual Loads 0 Difficulty Rogue Special Mode None Game No. 35 Rogue 30 Adventurer 5 Explorer 0 Win Type - Total 0 Types 0/0/0/0/0/0/0/0/0 Lore% 24 Gallery% 27 Achievement% 22 Wizard Run 0 Options --------- Layout 2 ASCII 0 Keyboard 0 Movement Mouse Keybinds 0 Fullscreen 2 Font 24/Smallcaps Map View 50x44 Zoom Use 0% Tactical HUD 1 Map Filters NONE Filters NONE Steam 1 RUN: 6f8cd019-8b9b-4f3f-9960-b166596e348a